bitfinex/quotes_BTCUSD_20251217
["timestamp","ask_amount","ask_price","bid_price","bid_amount"]
[1765951231424,0.01152658,86756.0,86752.0,0.01152711]
[1765951231975,0.01152658,86756.0,86753.0,0.01152697]
[1765951232565,0.01152631,86758.0,86754.0,0.30612342]
[1765951232966,0.01152644,86757.0,86754.0,0.01152684]
[1765951233349,0.01152618,86759.0,86756.0,0.01152658]
[1765951233726,0.01152618,86759.0,86754.0,0.01252684]
[1765951234160,0.24206097,86755.0,86752.0,0.001]
[1765951234374,0.24206097,86755.0,86751.0,0.10332355]
[1765951234608,0.24206097,86755.0,86751.0,0.04129355]
[1765951234824,0.24206097,86755.0,86748.0,0.24369321]
[1765951234825,0.01152724,86751.0,86748.0,0.00161287]
[1765951235448,0.01152724,86751.0,86748.0,0.01314051]
[1765951235630,0.01152711,86752.0,86749.0,0.01152751]
[1765951235881,0.24206376,86754.0,86749.0,0.01152751]
[1765951236086,0.24206376,86754.0,86750.0,0.01152737]
[1765951236333,0.23054489,86751.0,86748.0,0.00161287]
[1765951236552,0.23055286,86748.0,86747.0,6.504e-05]
[1765951236776,0.24207753,86750.0,86747.0,6.504e-05]
[1765951237794,0.23055279,86749.0,86747.0,0.00106504]
[1765951238006,0.24207753,86750.0,86747.0,0.00306504]
[1765951238215,0.01729146,86748.0,86747.0,0.00206504]
[1765951238446,0.01729146,86748.0,86747.0,0.00306504]
[1765951238447,0.13229162,86748.0,86747.0,0.00306504]
[1765951239184,0.01729146,86748.0,86747.0,0.00306504]
[1765951239386,0.0115295,86734.0,86729.0,0.01153016]
[1765951239615,0.01152963,86733.0,86729.0,0.0131864]
[1765951240479,0.01152963,86733.0,86730.0,0.01153003]
[1765951240909,0.23059805,86731.0,86729.0,0.00465624]
[1765951241428,0.01588399,86730.0,86729.0,0.00604337]
[1765951241867,0.01588399,86730.0,86729.0,0.00304337]
[1765951242212,0.01588399,86730.0,86729.0,0.00404337]
[1765951242417,0.10236574,86730.0,86729.0,0.00404337]
[1765951242614,0.08648175,86730.0,86729.0,0.00404337]
[1765951243028,0.08648175,86730.0,86729.0,0.00104337]
[1765951243375,0.08648175,86730.0,86729.0,0.00304337]
[1765951243606,0.08648175,86730.0,86729.0,4.337e-05]
[1765951243806,0.08648175,86730.0,86729.0,0.00104337]
[1765951244199,0.08648175,86730.0,86729.0,4.337e-05]
[1765951244606,0.1037768,86730.0,86729.0,4.337e-05]
[1765951244933,0.08648175,86730.0,86729.0,4.337e-05]
[1765951245366,0.09801378,86730.0,86729.0,4.337e-05]
[1765951246727,0.15562365,86730.0,86729.0,4.337e-05]
[1765951246923,0.11530883,86730.0,86729.0,4.337e-05]
[1765951247130,0.1729187,86730.0,86729.0,4.337e-05]
[1765951248146,0.4636187,86730.0,86729.0,3.37e-06]
[1765951248326,0.44632365,86730.0,86729.0,3.37e-06]
[1765951249080,0.38871378,86730.0,86729.0,3.37e-06]
[1765951249283,0.50371394,86730.0,86729.0,3.37e-06]
[1765951250206,0.30223203,86730.0,86729.0,3.37e-06]
[1765951250406,0.38871378,86730.0,86729.0,3.37e-06]
[1765951255008,0.01153203,86730.0,86729.0,0.04045337]
[1765951255245,0.23060068,86731.0,86729.0,3.37e-06]
[1765951255808,0.01729505,86730.0,86729.0,3.37e-06]
[1765951256023,0.01729505,86730.0,86729.0,0.00100337]
[1765951256397,0.01729505,86730.0,86729.0,3.37e-06]
[1765951256598,0.01729505,86730.0,86729.0,0.00100337]
[1765951256885,0.01729505,86730.0,86729.0,0.00200337]
[1765951257041,0.01729505,86730.0,86729.0,0.00100337]
[1765951257408,0.23060068,86731.0,86729.0,0.00100337]
[1765951257614,0.23060068,86731.0,86729.0,0.00200337]
[1765951258349,0.23060068,86731.0,86729.0,0.00100337]
[1765951258818,0.23060068,86731.0,86729.0,3.37e-06]
[1765951259243,0.23060068,86731.0,86729.0,0.00100337]
[1765951259870,0.23060068,86731.0,86729.0,0.00200337]
[1765951260299,0.24212695,86732.0,86729.0,0.00200337]
[1765951260515,0.23060068,86731.0,86729.0,0.00200337]
[1765951261241,0.23060068,86731.0,86729.0,0.00100337]
[1765951262439,0.23060068,86731.0,86729.0,3.37e-06]
[1765951263839,0.01152963,86733.0,86731.0,0.07266]
[1765951264063,0.0115287,86740.0,86736.0,0.23058476]
[1765951264268,0.24210174,86741.0,86738.0,0.07737897]
[1765951264485,0.01152817,86744.0,86740.0,0.06585]
[1765951264700,0.01152804,86745.0,86744.0,0.17940926]
[1765951265144,0.01152737,86750.0,86747.0,0.06585]
[1765951265356,0.01152737,86750.0,86749.0,0.11173]
[1765951265569,0.2305502,86749.0,86747.0,0.00161287]
[1765951266233,0.01152711,86752.0,86747.0,0.29801649]
[1765951266449,0.01152711,86752.0,86748.0,0.06585]
[1765951266684,0.001,86749.0,86748.0,0.12325764]
[1765951267110,0.2420743,86751.0,86749.0,0.06585]
[1765951267766,0.242077,86750.0,86747.0,0.00161287]
[1765951268189,0.01152737,86750.0,86747.0,0.06746287]
[1765951268397,0.2305502,86749.0,86747.0,0.06746287]
[1765951269689,0.01152737,86750.0,86747.0,0.06746287]
[1765951269690,0.24207749,86750.0,86747.0,0.06746287]
[1765951269916,0.001,86749.0,86747.0,0.06746287]
[1765951270363,0.24207749,86750.0,86747.0,0.06746287]
[1765951270571,0.23055199,86749.0,86747.0,0.00161287]
[1765951271267,0.23056615,86743.0,86738.0,0.01152897]
[1765951271683,0.2305706,86742.0,86738.0,0.01152897]
[1765951272740,0.01152857,86741.0,86738.0,0.01152897]
[1765951272959,0.01152857,86741.0,86738.0,0.01252897]
[1765951273338,0.01152857,86741.0,86738.0,0.01414184]
[1765951273543,0.01152817,86744.0,86739.0,0.01152883]
[1765951273544,0.0115283,86743.0,86739.0,0.01152883]
[1765951273721,0.01152857,86741.0,86738.0,0.00161287]
[1765951274064,0.23057678,86739.0,86738.0,0.11717213]
[1765951274223,0.23057678,86739.0,86738.0,0.00361287]
[1765951274954,0.24210175,86741.0,86738.0,0.00361287]
[1765951275152,0.23057584,86740.0,86738.0,0.00161287]
[1765951275658,0.23057584,86740.0,86738.0,0.00261287]
[1765951276854,0.23057584,86740.0,86738.0,0.00361287]
[1765951280216,0.49361168,86750.0,86739.0,0.06585]
[1765951280425,0.49361168,86750.0,86738.0,0.00361287]
[1765951280426,0.24208559,86747.0,86744.0,0.04493817]
[1765951280639,0.24207656,86750.0,86746.0,0.1232579]
[1765951280848,0.01152751,86749.0,86746.0,0.1232579]
[1765951281052,0.01152751,86749.0,86746.0,0.0574079]
[1765951281266,0.01152711,86752.0,86748.0,0.11355926]
[1765951281495,0.24207116,86752.0,86749.0,0.09926]
[1765951281704,0.24207116,86752.0,86749.0,0.03341]
[1765951282382,0.01152525,86766.0,86761.0,0.09081591]
[1765951282603,0.230513,86763.0,86761.0,0.03341]
[1765951282860,0.001,86752.0,86749.0,0.04655038]
[1765951283067,0.002,86752.0,86749.0,0.2770989]
[1765951283283,0.001,86752.0,86749.0,0.3429489]
[1765951283495,0.001,86752.0,86749.0,0.3449489]
[1765951283703,0.001,86752.0,86749.0,0.3429489]
[1765951283916,0.01252711,86752.0,86749.0,0.03502287]
[1765951284145,0.001,86752.0,86749.0,0.24368874]
[1765951284353,0.24207143,86752.0,86749.0,0.00161287]
[1765951285139,0.24207143,86752.0,86749.0,0.00261287]
[1765951285347,0.01152697,86753.0,86749.0,0.24568856]
[1765951285765,0.01152697,86753.0,86749.0,0.00361287]
[1765951285766,0.23054755,86750.0,86749.0,0.00361287]
[1765951286188,0.23054755,86750.0,86749.0,0.00261287]
[1765951286403,0.23054755,86750.0,86749.0,0.00161287]
[1765951286603,0.24206934,86752.0,86749.0,0.00261287]
[1765951286810,0.23054662,86751.0,86749.0,0.00261287]
[1765951286991,0.23054662,86751.0,86749.0,0.00161287]
[1765951287589,0.2907,86779.0,86768.0,0.04588]
[1765951287794,0.2907,86779.0,86778.0,0.03341]
[1765951287795,0.2304705,86779.0,86778.0,0.03341]
[1765951288021,0.01152392,86776.0,86773.0,0.03341]
[1765951288196,0.2420042,86776.0,86773.0,0.03341]
[1765951288559,0.01152392,86776.0,86773.0,0.03341]
[1765951289035,0.01152445,86772.0,86768.0,0.04493498]
[1765951289686,0.24500273,86776.0,86770.0,0.01152472]
[1765951289831,0.24400273,86776.0,86770.0,0.01152472]
[1765951290039,0.24200741,86775.0,86770.0,0.01152472]
[1765951291234,0.24200741,86775.0,86769.0,0.04493485]
[1765951291235,0.01152525,86766.0,86763.0,0.03463853]
[1765951291378,0.01152525,86766.0,86752.0,0.26556325]
[1765951291379,0.01152551,86764.0,86761.0,0.13179926]
[1765951291582,0.24203585,86764.0,86761.0,0.13179926]
[1765951292373,0.24203585,86764.0,86763.0,0.002]
[1765951293218,0.24203585,86764.0,86763.0,0.001]
[1765951293598,0.24203585,86764.0,86761.0,0.17673517]
[1765951293802,0.01152525,86766.0,86762.0,0.01152578]
[1765951293986,0.01152538,86765.0,86761.0,0.24358517]
[1765951294387,0.01152551,86764.0,86761.0,0.14796926]
[1765951294651,0.23051566,86762.0,86761.0,0.03441]
[1765951294925,0.23051566,86762.0,86761.0,0.03341]
[1765951295125,0.23051566,86762.0,86761.0,0.13468]
[1765951295287,0.23051566,86762.0,86761.0,0.07482]
[1765951295492,0.23051566,86762.0,86761.0,0.07382]
[1765951295695,0.23051566,86762.0,86761.0,0.07482]
[1765951297305,0.24203585,86764.0,86761.0,0.07582]
[1765951298090,0.24203585,86764.0,86761.0,0.07482]
[1765951298327,0.24203585,86764.0,86761.0,0.07382]
[1765951298481,0.24203585,86764.0,86761.0,0.07582]
[1765951300697,0.23051566,86762.0,86761.0,0.07582]
[1765951301170,0.23051566,86762.0,86761.0,0.03541]
[1765951301590,0.24203585,86764.0,86761.0,0.03441]
[1765951302211,0.24203585,86764.0,86761.0,0.03541]
[1765951302785,0.01152538,86765.0,86761.0,0.03541]
[1765951303010,0.01152551,86764.0,86761.0,0.04593591]
[1765951303218,0.01152551,86764.0,86761.0,0.04493591]
[1765951303606,0.01152551,86764.0,86761.0,0.04593591]
[1765951304234,0.01152551,86764.0,86761.0,0.11184591]
[1765951304443,0.01152538,86765.0,86762.0,0.01152578]
[1765951304672,0.01152485,86769.0,86766.0,0.01152525]
[1765951304882,0.01177797,86771.0,86767.0,0.01152511]
[1765951305111,0.24227145,86771.0,86767.0,0.01152511]
[1765951305322,0.01152472,86770.0,86767.0,0.01152511]
[1765951305753,0.01177797,86771.0,86768.0,0.01152498]
[1765951306825,0.00025339,86771.0,86768.0,0.24202282]
[1765951308445,0.24227018,86771.0,86767.0,0.03155]
[1765951308675,0.01152472,86770.0,86766.0,0.24202989]
[1765951308895,0.01152472,86770.0,86767.0,0.11355926]
[1765951309107,0.00025339,86771.0,86768.0,0.01152498]
[1765951309320,0.00025339,86771.0,86769.0,0.23049545]
[1765951309551,3.39e-06,86771.0,86770.0,0.00161287]
[1765951309775,3.39e-06,86771.0,86770.0,0.24230213]
[1765951309990,3.39e-06,86771.0,86770.0,0.27728272]
[1765951310430,0.50769122,86800.0,86795.0,0.03155]
[1765951310648,0.24194194,86798.0,86796.0,0.06591]
[1765951310868,0.08648175,86797.0,86795.0,0.03155]
[1765951311111,0.0007916,86796.0,86795.0,0.03155]
[1765951312001,0.0007916,86796.0,86795.0,0.25565213]
[1765951313250,0.0007916,86796.0,86795.0,0.25665213]
[1765951313647,0.0007916,86796.0,86795.0,0.25765213]
[1765951314287,0.0007916,86796.0,86795.0,0.25665213]
[1765951314521,0.0007916,86796.0,86795.0,0.25565213]
[1765951314913,0.0007916,86796.0,86795.0,0.30767052]
[1765951315416,0.0007916,86796.0,86795.0,0.59837052]
[1765951315617,0.0007916,86796.0,86795.0,0.60037052]
[1765951316019,0.0007916,86796.0,86795.0,0.59837052]
[1765951316198,0.0007916,86796.0,86795.0,0.59637052]
[1765951316403,0.0007916,86796.0,86795.0,0.60337052]
[1765951316970,0.0007916,86796.0,86795.0,0.60037052]
[1765951317180,0.0007916,86796.0,86795.0,0.60437052]
[1765951318249,0.0007916,86796.0,86795.0,1.41463054]
[1765951318505,0.0007916,86796.0,86795.0,1.33815552]
[1765951318712,1.6e-06,86796.0,86795.0,1.33815552]
[1765951320441,1.6e-06,86796.0,86795.0,1.37313611]
[1765951320661,0.0002,86836.0,86795.0,1.37313611]
[1765951320662,0.0002,86836.0,86809.0,0.59475765]
[1765951320919,1e-08,86816.0,86815.0,0.79358258]
[1765951321122,0.01151079,86875.0,86874.0,0.14048]
[1765951321347,0.23022907,86870.0,86869.0,0.01824]
[1765951321566,0.01151264,86861.0,86858.0,0.03155]
[1765951321783,0.01151264,86861.0,86859.0,0.01824]
[1765951322214,0.01151264,86861.0,86858.0,0.03155]
[1765951322389,0.01151264,86861.0,86860.0,0.01824]
[1765951322795,0.23025558,86860.0,86859.0,0.10893]
[1765951323034,0.23025558,86860.0,86859.0,0.01824]
[1765951323686,0.23025558,86860.0,86859.0,0.12717]
[1765951324351,0.002,86861.0,86860.0,0.1071]
[1765951324569,0.001,86861.0,86860.0,0.22227213]
[1765951324805,0.01151052,86877.0,86874.0,0.1071]
[1765951325013,3.02e-06,86875.0,86874.0,0.24051213]
[1765951325232,3.02e-06,86875.0,86874.0,0.12695287]
[1765951325649,3.02e-06,86875.0,86874.0,0.24051213]
[1765951326508,3.02e-06,86875.0,86874.0,0.22327213]
[1765951326726,3.02e-06,86875.0,86874.0,0.24151213]
[1765951326943,0.00250183,86875.0,86874.0,0.24151213]
[1765951327409,0.00250183,86875.0,86874.0,0.02085287]
[1765951327630,0.00250183,86875.0,86874.0,0.01985287]
[1765951328097,0.00250183,86875.0,86874.0,0.02085287]
[1765951328321,0.00250183,86875.0,86874.0,0.12795287]
[1765951328559,0.00250183,86875.0,86874.0,0.12695287]
[1765951328991,0.00350183,86875.0,86874.0,0.35717134]
[1765951329212,0.00350183,86875.0,86874.0,0.4707306]
[1765951330381,0.00250183,86875.0,86874.0,0.4707306]
[1765951331230,0.00250183,86875.0,86874.0,0.35717134]
[1765951331453,0.00250183,86875.0,86874.0,0.4717306]
[1765951332712,0.00250183,86875.0,86874.0,0.7624306]
[1765951333130,0.00250183,86875.0,86874.0,0.79701897]
[1765951333333,0.00250183,86875.0,86874.0,0.84703736]
[1765951334205,0.00250183,86875.0,86874.0,0.84603736]
[1765951334622,0.00250183,86875.0,86874.0,0.84803736]
[1765951334822,0.00250183,86875.0,86874.0,0.84903736]
[1765951335647,0.00250183,86875.0,86874.0,0.83079736]
[1765951335863,0.00250183,86875.0,86874.0,0.66721971]
[1765951336149,0.00250183,86875.0,86874.0,0.79901897]
[1765951336366,0.00250183,86875.0,86874.0,0.22527213]
[1765951336786,0.00250183,86875.0,86874.0,0.003]
[1765951337185,0.00250183,86875.0,86874.0,0.04724]
[1765951337397,0.00250183,86875.0,86874.0,0.10971287]
[1765951337550,0.00250183,86875.0,86874.0,0.22227213]
[1765951337750,0.00250183,86875.0,86874.0,0.22327213]
[1765951337953,0.00350183,86875.0,86874.0,0.22327213]
[1765951338136,0.00350183,86875.0,86874.0,0.22227213]
[1765951338832,0.00250183,86875.0,86874.0,0.22227213]
[1765951340312,0.00250183,86875.0,86874.0,0.22327213]
[1765951341915,0.00250183,86875.0,86874.0,0.02085287]
[1765951342502,0.00250183,86875.0,86874.0,0.12795287]
[1765951342707,0.00250183,86875.0,86874.0,0.35817134]
[1765951342887,0.00250183,86875.0,86874.0,0.02085287]
[1765951343115,0.00250183,86875.0,86874.0,0.00261287]
[1765951343315,0.00250183,86875.0,86874.0,0.02085287]
[1765951343531,0.00250183,86875.0,86874.0,0.06509287]
[1765951343941,0.00250183,86875.0,86874.0,0.01985287]
[1765951344140,0.00350183,86875.0,86874.0,0.01985287]
[1765951344619,0.00350183,86875.0,86874.0,0.00161287]
[1765951345156,0.00350183,86875.0,86868.0,0.2417436]
[1765951345157,0.01151118,86872.0,86868.0,0.2417436]
[1765951345360,0.01151145,86870.0,86865.0,0.3553114]
[1765951345560,0.01151092,86874.0,86868.0,0.02975171]
[1765951345739,0.01151118,86872.0,86869.0,0.01824]
[1765951345938,0.01151118,86872.0,86869.0,0.02975158]
[1765951346148,0.24173703,86872.0,86869.0,0.01824]
[1765951346349,0.24173703,86872.0,86861.0,0.01151264]
[1765951346350,0.24175129,86867.0,86861.0,0.01151264]
[1765951346554,0.01151238,86863.0,86862.0,0.01824]
[1765951346942,0.01151211,86865.0,86862.0,0.02975251]
[1765951347400,0.01151238,86863.0,86862.0,0.01824]
[1765951347627,0.01151224,86864.0,86862.0,0.01824]
[1765951347860,0.24175729,86864.0,86862.0,0.01924]
[1765951348086,0.01151224,86864.0,86862.0,0.01924]
[1765951348343,0.01151224,86864.0,86862.0,0.01824]
[1765951349040,0.01151224,86864.0,86862.0,0.01924]
[1765951349310,0.23024763,86863.0,86862.0,0.001]
[1765951349532,0.01151224,86864.0,86860.0,0.01151277]
[1765951349751,0.01151211,86865.0,86862.0,0.01824]
[1765951350010,0.01151198,86866.0,86863.0,0.01151238]
[1765951350214,0.001,86864.0,86863.0,0.01151238]
[1765951350966,0.01151198,86866.0,86863.0,0.01151238]
[1765951351164,0.001,86864.0,86863.0,0.01151238]
[1765951351334,0.001,86864.0,86861.0,0.02975264]
[1765951351532,0.24175395,86866.0,86861.0,0.02975264]
[1765951351774,0.01251224,86864.0,86861.0,0.01824]
[1765951352090,0.24275906,86864.0,86861.0,0.01824]
[1765951352613,0.01251224,86864.0,86861.0,0.01824]
[1765951353049,0.01151224,86864.0,86861.0,0.01824]
[1765951353481,0.001,86864.0,86861.0,0.02975264]
[1765951353705,0.01151198,86866.0,86862.0,0.01151251]
[1765951353935,0.01151198,86866.0,86862.0,0.24176112]
[1765951354154,0.01151211,86865.0,86862.0,0.01151251]
[1765951354778,0.24175332,86866.0,86862.0,0.01151251]
[1765951355025,0.24275332,86866.0,86862.0,0.01151251]
[1765951355250,0.24375332,86866.0,86862.0,0.01151251]
[1765951355696,0.002,86866.0,86863.0,0.24176001]
[1765951356141,0.002,86866.0,86863.0,0.30390001]
[1765951356377,0.001,86866.0,86865.0,0.33127233]
[1765951356609,0.01151132,86871.0,86867.0,0.07307185]
[1765951356830,3.02e-06,86875.0,86869.0,0.04238158]
[1765951357060,3.02e-06,86875.0,86874.0,0.11355926]
[1765951357288,3.02e-06,86875.0,86874.0,0.13179926]
[1765951357509,3.02e-06,86875.0,86874.0,0.13341213]
[1765951359157,0.00100302,86875.0,86874.0,0.17610213]
[1765951359382,0.00100302,86875.0,86874.0,0.23766213]
[1765951359600,0.00200302,86875.0,86874.0,0.23766213]
[1765951360747,0.00200302,86875.0,86874.0,0.12410287]
[1765951361223,0.00200302,86875.0,86874.0,0.23766213]
[1765951361437,0.00100302,86875.0,86874.0,0.23766213]
[1765951361659,0.00100302,86875.0,86874.0,0.23866213]
[1765951362318,3.02e-06,86875.0,86874.0,0.17710213]
[1765951362541,3.02e-06,86875.0,86874.0,0.19091523]
[1765951362775,0.00250183,86875.0,86874.0,0.13891597]
[1765951362990,1.83e-06,86875.0,86874.0,0.54317523]
[1765951363201,1.83e-06,86875.0,86874.0,0.52936213]
[1765951363838,0.23012471,86910.0,86904.0,0.01150695]
[1765951364074,0.01150708,86903.0,86900.0,0.01824]
[1765951364276,0.01150668,86906.0,86902.0,0.01150721]
[1765951364479,0.01150628,86909.0,86904.0,0.07306695]
[1765951364634,0.01150668,86906.0,86903.0,0.01150708]
[1765951365088,0.00337618,86910.0,86909.0,0.04269]
[1765951365287,0.00337618,86910.0,86908.0,0.06156]
[1765951365516,0.2305018,86910.0,86908.0,0.06156]
[1765951365855,0.23012576,86909.0,86908.0,0.06156]
[1765951366143,0.00037618,86910.0,86908.0,0.06156]
[1765951366362,0.00137618,86910.0,86908.0,0.06156]
[1765951366778,0.00037618,86910.0,86908.0,0.06156]
[1765951366988,0.00037618,86910.0,86906.0,0.01150668]
[1765951366989,0.001,86909.0,86907.0,0.3031954]
[1765951367409,0.00037618,86910.0,86907.0,0.3031954]
[1765951367632,0.24300614,86910.0,86906.0,0.01150668]
[1765951367857,0.24300614,86910.0,86903.0,0.24325948]
[1765951367858,0.01150642,86908.0,86903.0,0.00161287]
[1765951368075,0.01150668,86906.0,86904.0,0.01824]
[1765951368504,0.01150642,86908.0,86904.0,0.01824]
[1765951369186,0.001,86909.0,86908.0,0.04269]
[1765951369402,0.00037618,86910.0,86906.0,0.24163811]
[1765951369635,0.01150628,86909.0,86906.0,0.01150668]
[1765951370088,0.001,86908.0,86906.0,0.07306668]
[1765951370315,0.24161957,86914.0,86905.0,0.27251269]
[1765951370316,0.01150337,86931.0,86928.0,0.06156]
[1765951370524,0.01150483,86920.0,86916.0,0.01150536]
[1765951370732,0.01150443,86923.0,86917.0,0.25231132]
[1765951370910,0.01150443,86923.0,86918.0,0.0222081]
[1765951371151,0.00176,86920.0,86919.0,0.01070301]
[1765951371330,0.01150456,86922.0,86919.0,0.05339301]
[1765951371570,0.23009399,86921.0,86920.0,0.01070301]
[1765951372002,0.23167399,86921.0,86920.0,0.01070301]
[1765951372425,0.00011283,86931.0,86930.0,0.10425]
[1765951372637,0.00011283,86931.0,86930.0,0.01070301]
[1765951373271,0.00011283,86931.0,86930.0,0.11656588]
[1765951374757,0.00111283,86931.0,86930.0,0.23012514]
[1765951374974,0.00211283,86931.0,86930.0,0.31660689]
[1765951375175,0.00388219,86931.0,86930.0,0.31660689]
[1765951375593,0.00288219,86931.0,86930.0,0.23012514]
[1765951375800,0.00288219,86931.0,86930.0,0.24836514]
[1765951375968,0.00288219,86931.0,86930.0,0.33484689]
[1765951375969,0.00188219,86931.0,86930.0,0.33484689]
[1765951376183,0.00188219,86931.0,86930.0,0.33584689]
[1765951376760,0.00188219,86931.0,86930.0,0.31760689]
[1765951377082,0.00188219,86931.0,86930.0,0.18880514]
[1765951377280,0.00188219,86931.0,86930.0,0.05700588]
[1765951377438,0.00188219,86931.0,86930.0,0.11856588]
[1765951377789,0.00188219,86931.0,86930.0,0.11756588]
[1765951378359,0.00188219,86931.0,86930.0,0.11656588]
[1765951378565,0.0001,86932.0,86931.0,0.44787678]
[1765951378803,0.01149993,86957.0,86956.0,0.13512]
[1765951379008,0.01149993,86957.0,86956.0,0.03087]
[1765951379224,0.24149866,86957.0,86955.0,0.03087]
[1765951379397,0.01149993,86957.0,86955.0,0.03087]
[1765951379605,0.0116998,86958.0,86955.0,0.0423702]
[1765951379606,0.24169624,86958.0,86955.0,0.0423702]
[1765951379807,0.23000138,86956.0,86955.0,0.03124618]
[1765951380022,0.24169624,86958.0,86955.0,0.01187638]
[1765951380023,0.0116998,86958.0,86955.0,0.01187638]
[1765951380232,0.0002,86958.0,86956.0,0.03087]
[1765951380479,0.0002,86958.0,86955.0,0.11393544]
[1765951380480,0.0002,86958.0,86955.0,0.00037618]
[1765951380669,0.72101518,86980.0,86957.0,0.00161287]
[1765951381043,0.00012289,86999.0,86994.0,0.04269]
[1765951381242,0.01149464,86997.0,86996.0,0.10425]
[1765951381456,0.00012289,86999.0,86998.0,0.10425]
[1765951381859,0.00012289,86999.0,86998.0,0.21942213]
[1765951381991,0.00012289,86999.0,86998.0,0.23004964]
[1765951382197,0.00012289,86999.0,86998.0,0.57114421]
[1765951382409,0.00012289,86999.0,86998.0,0.24874582]
[1765951382602,0.00012289,86999.0,86998.0,0.24713295]
[1765951382828,0.00112289,86999.0,86998.0,0.24713295]
[1765951383181,0.00012289,86999.0,86998.0,0.10462618]
[1765951384279,9.93331289,87000.0,86999.0,0.28985769]
[1765951384402,9.93331289,87000.0,86999.0,0.50823325]
[1765951384607,9.93549057,87000.0,86999.0,0.45821486]
[1765951385859,9.93549057,87000.0,86999.0,0.46082773]
[1765951386189,9.93549057,87000.0,86999.0,0.51084612]
[1765951386497,9.93549057,87000.0,86999.0,0.80154612]
[1765951386713,9.93549057,87000.0,86999.0,0.80254612]
[1765951387156,8.18932627,87000.0,86999.0,2.04751071]
[1765951387376,7.5644591,87000.0,86999.0,2.00081352]
[1765951387592,7.12115461,87000.0,86999.0,2.10498352]
[1765951387821,6.53614268,87000.0,86999.0,2.00081352]
[1765951388048,6.50162306,87000.0,86999.0,2.10298352]
[1765951388256,3.04124177,87000.0,86999.0,2.02952311]
[1765951388458,2.55139969,87000.0,86999.0,2.07772311]
[1765951388660,2.20355007,87000.0,86999.0,2.08172311]
[1765951388899,1.98222045,87000.0,86999.0,1.64827013]
[1765951389108,1.98222045,87000.0,86999.0,0.46382773]
[1765951389309,1.98222045,87000.0,86999.0,0.48214773]
[1765951389509,1.98222045,87000.0,86999.0,0.48314773]
[1765951389717,1.98222045,87000.0,86999.0,0.76884773]
[1765951389925,1.98222045,87000.0,86999.0,0.77384773]
[1765951390357,1.98222045,87000.0,86999.0,0.76884773]
[1765951390796,1.98222045,87000.0,86999.0,0.76984773]
[1765951390999,1.98222045,87000.0,86999.0,0.81986612]
[1765951391241,1.98222045,87000.0,86999.0,0.82186612]
[1765951391448,1.98222045,87000.0,86999.0,0.82386612]
[1765951391869,1.98222045,87000.0,86999.0,0.82086612]
[1765951392144,1.98222045,87000.0,86999.0,0.54096004]
[1765951392351,1.98222045,87000.0,86999.0,0.53136213]
[1765951393244,1.98222045,87000.0,86999.0,0.23866213]
[1765951393445,1.98222045,87000.0,86999.0,0.12549]
[1765951393889,1.98222045,87000.0,86999.0,0.10717]
[1765951394098,1.98222045,87000.0,86999.0,0.0442]
[1765951394554,0.36578769,86999.0,86998.0,0.00037618]
[1765951394769,0.42319787,86999.0,86998.0,0.00037618]
[1765951394988,0.65648769,86999.0,86998.0,0.00037618]
[1765951395196,0.71389787,86999.0,86998.0,0.00037618]
[1765951395401,0.01149808,86971.0,86965.0,0.11355926]
[1765951395633,0.01149808,86971.0,86968.0,0.03124648]
[1765951395866,0.22996435,86970.0,86968.0,0.03124648]
[1765951396076,0.10368,86969.0,86968.0,0.00037648]
[1765951396284,0.1783377,86969.0,86968.0,0.00037648]
[1765951396515,0.16109018,86969.0,86968.0,0.00037648]
[1765951396965,0.24757193,86969.0,86968.0,0.00037648]
[1765951397422,0.53827193,86969.0,86968.0,0.00037648]
[1765951398038,0.54227193,86969.0,86968.0,0.00037648]
[1765951398271,0.01832,86969.0,86968.0,0.00037648]
[1765951398492,0.01149782,86973.0,86969.0,0.05997]
[1765951398722,0.01149795,86972.0,86971.0,0.10417]
[1765951398934,0.01149768,86974.0,86973.0,0.03007]
[1765951399360,0.01149768,86974.0,86973.0,0.13424]
[1765951400232,0.01149768,86974.0,86973.0,0.24941213]
[1765951400689,0.01449768,86974.0,86973.0,0.14524213]
[1765951401099,0.01449768,86974.0,86973.0,0.03168287]
[1765951401304,0.01149808,86971.0,86968.0,0.00037648]
[1765951401519,0.004,86974.0,86973.0,0.11355926]
[1765951401723,0.003,86974.0,86973.0,0.21772926]
[1765951401930,0.005,86974.0,86973.0,0.21772926]
[1765951402167,0.01149742,86976.0,86973.0,0.21772926]
[1765951402371,0.01149742,86976.0,86975.0,0.21772926]
[1765951402988,0.01149742,86976.0,86975.0,0.15775926]
[1765951403683,0.24141685,86987.0,86986.0,0.21772926]
[1765951403886,0.01149663,86982.0,86981.0,0.11355926]
[1765951404113,0.01149663,86982.0,86981.0,0.15775926]
[1765951404323,0.01149663,86982.0,86981.0,0.21772926]
[1765951405300,0.01149663,86982.0,86981.0,0.15775926]
[1765951405507,0.01249663,86982.0,86981.0,0.11355926]
[1765951405942,0.01149716,86978.0,86977.0,0.11355926]
[1765951406102,0.24144036,86978.0,86975.0,0.00161287]
[1765951406307,0.00148373,86978.0,86977.0,0.21772926]
[1765951406505,0.00148373,86978.0,86977.0,0.24779926]
[1765951407451,0.00248373,86978.0,86977.0,0.24779926]
[1765951408614,0.00248373,86978.0,86977.0,0.4777451]
[1765951408729,0.00248373,86978.0,86977.0,0.24779926]
[1765951409373,0.00248373,86978.0,86977.0,0.4777451]
[1765951409622,0.00248373,86978.0,86977.0,0.24779926]
[1765951409948,0.00248373,86978.0,86977.0,0.47935797]
[1765951410762,0.00248373,86978.0,86977.0,0.54769636]
[1765951411259,0.00248373,86978.0,86977.0,0.83839636]
[1765951411463,0.00248373,86978.0,86977.0,1.13853136]
[1765951411675,0.00148373,86978.0,86977.0,1.13853136]
[1765951411879,0.00148373,86978.0,86977.0,1.14053136]
[1765951412120,0.00148373,86978.0,86977.0,0.8354471]
[1765951412334,0.00148373,86978.0,86977.0,0.94500636]
[1765951412535,0.00148373,86978.0,86977.0,0.97365748]
[1765951412738,0.00148373,86978.0,86977.0,0.87204748]
[1765951412945,0.00148373,86978.0,86977.0,0.85372748]
[1765951413153,0.00148373,86978.0,86977.0,0.84039636]
[1765951413901,0.00148373,86978.0,86977.0,0.78837797]
[1765951414434,0.00148373,86978.0,86977.0,0.50067797]
[1765951414857,0.00148373,86978.0,86977.0,0.49967797]
[1765951415253,0.00148373,86978.0,86977.0,0.50267797]
[1765951418753,0.00148373,86978.0,86977.0,0.26773213]
[1765951418964,0.24145145,86974.0,86973.0,0.11355926]
[1765951419570,0.22995113,86975.0,86973.0,0.11355926]
[1765951420719,0.001,86974.0,86973.0,0.11355926]
[1765951420978,0.01149808,86971.0,86968.0,0.00037648]
[1765951421363,0.24146185,86971.0,86968.0,0.00037648]
[1765951421566,0.24146185,86971.0,86969.0,0.03678]
[1765951422179,0.24246185,86971.0,86969.0,0.03678]
[1765951422381,0.24346185,86971.0,86969.0,0.03678]
[1765951422664,0.24246185,86971.0,86969.0,0.03678]
[1765951423423,0.001,86971.0,86969.0,0.03678]